bitfinex/quotes_SOLUSD_20251204
["timestamp","ask_amount","ask_price","bid_price","bid_amount"]
[1764875526710,12.52924362,140.24,140.23,91.96497432]
[1764875527498,12.52924362,140.24,140.23,91.27497432]
[1764875527781,19.65987682,140.24,140.23,91.27497432]
[1764875528594,12.52924362,140.24,140.23,91.27497432]
[1764875529392,19.65987682,140.24,140.23,91.27497432]
[1764875530300,20.17987682,140.24,140.23,91.27497432]
[1764875530503,51.44564836,140.24,140.16,0.69]
[1764875530702,0.42,140.23,140.16,0.69]
[1764875530886,16.308864,140.21,140.16,0.69]
[1764875531092,16.308864,140.19,140.16,7.82465527]
[1764875531294,4.62924362,140.19,140.16,7.82465527]
[1764875531607,7.9,140.18,140.17,0.69]
[1764875531816,33.76716112,140.24,140.18,7.13368526]
[1764875531817,7.9,140.2,140.18,7.13368526]
[1764875532405,4.62924362,140.22,140.18,7.13368526]
[1764875532596,7.92,140.21,140.18,24.96789841]
[1764875533192,4.62924362,140.2,140.15,93.65579096]
[1764875533398,7.92,140.19,140.15,93.65579096]
[1764875533592,12.54924362,140.19,140.17,7.13419183]
[1764875533795,12.54924362,140.19,140.16,7.78470319]
[1764875534183,12.54924362,140.19,140.17,0.65]
[1764875534390,15.05335555,140.19,140.15,94.30579096]
[1764875534609,4.62924362,140.16,140.15,93.65579096]
[1764875534817,12.54924362,140.16,140.15,93.65579096]
[1764875534988,7.13335555,140.19,140.15,94.30579096]
[1764875535184,4.62924362,140.16,140.15,93.65579096]
[1764875535415,20.93810762,140.16,140.15,93.65579096]
[1764875537512,28.77281081,140.16,140.15,93.65579096]
[1764875537889,50.13199935,140.16,140.15,93.65579096]
[1764875538410,53.8295688,140.16,140.11,0.65]
[1764875538613,31.36356719,140.16,140.11,0.65]
[1764875538817,20.93810762,140.13,140.11,7.78719111]
[1764875539002,28.85810762,140.13,140.11,7.78719111]
[1764875539204,28.85810762,140.13,140.12,0.65]
[1764875539408,28.85810762,140.13,140.1,7.13771013]
[1764875539614,4.62924362,140.12,140.1,7.13771013]
[1764875539823,0.6,140.2,140.11,7.7872493]
[1764875540117,4.62924362,140.16,140.11,12.41649292]
[1764875540309,4.62924362,140.17,140.12,0.65]
[1764875540507,7.92,140.16,140.12,5.27924362]
[1764875541014,7.92,140.16,140.13,7.78623064]
[1764875541396,7.92,140.16,140.14,0.65]
[1764875541917,12.54924362,140.16,140.14,0.65]
[1764875542418,20.21574664,140.16,140.14,0.65]
[1764875542714,20.21574664,140.16,140.13,7.13623064]
[1764875542927,20.21574664,140.16,140.14,0.65]
[1764875543108,20.21574664,140.16,140.13,7.13623064]
[1764875543324,7.92,140.16,140.14,7.13566292]
[1764875543498,20.21574664,140.16,140.14,7.78566292]
[1764875543698,7.92,140.16,140.15,0.65]
[1764875544407,20.21574664,140.16,140.13,7.13602527]
[1764875544603,12.29574664,140.15,140.12,7.78641065]
[1764875544927,12.29574664,140.15,140.13,0.65]
[1764875545100,12.29574664,140.14,140.12,0.65]
[1764875545507,12.29574664,140.14,140.12,7.78666669]
[1764875546199,12.29574664,140.14,140.13,0.65]
[1764875547524,12.29574664,140.15,140.13,0.65]
[1764875548223,19.43105316,140.15,140.13,0.65]
[1764875548609,12.29574664,140.15,140.13,0.65]
[1764875550019,15.05489696,140.16,140.13,0.65]
[1764875550201,12.29574664,140.15,140.13,0.65]
[1764875550922,28.60461064,140.19,140.14,12.29574664]
[1764875551122,28.60461064,140.19,140.13,37.92232705]
[1764875551123,31.36206018,140.19,140.13,37.92232705]
[1764875551431,36.52461064,140.19,140.14,0.65]
[1764875551728,7.92,140.19,140.15,24.97324295]
[1764875552121,20.21574664,140.19,140.16,0.65]
[1764875553722,12.29574664,140.18,140.14,7.13564359]
[1764875554039,12.29574664,140.18,140.14,0.65]
[1764875554524,12.29574664,140.17,140.14,0.65]
[1764875554826,7.92,140.16,140.14,0.65]
[1764875555202,7.92,140.16,140.14,0.15]
[1764875555427,20.21574664,140.16,140.12,24.97735127]
[1764875555625,7.92,140.16,140.12,37.27309791]
[1764875557333,7.92,140.16,140.13,0.65]
[1764875557634,20.21574664,140.16,140.13,0.65]
[1764875558713,20.21574664,140.16,140.13,7.78610819]
[1764875558912,20.21574664,140.16,140.14,0.65]
[1764875559338,20.21574664,140.16,140.12,24.97735127]
[1764875559516,20.21574664,140.16,140.13,0.65]
[1764875559933,27.35055914,140.16,140.13,0.65]
[1764875560315,12.99574664,140.15,140.12,7.13673993]
[1764875560819,12.99574664,140.15,140.11,7.1372493]
[1764875561020,12.99574664,140.15,140.11,7.7872493]
[1764875561430,12.29574664,140.15,140.12,0.65]
[1764875561830,20.21574664,140.16,140.12,0.65]
[1764875562235,15.75470651,140.16,140.12,0.65]
[1764875562438,12.29574664,140.13,140.11,0.71]
[1764875562644,12.29574664,140.12,140.08,94.8366076]
[1764875562813,23.44713225,140.09,140.08,94.8366076]
[1764875563013,53.18282381,140.09,140.08,94.8366076]
[1764875563219,40.88707717,140.09,140.08,94.8366076]
[1764875563420,40.88707717,140.09,140.01,20.56753054]
[1764875563421,0.99999999,140.04,140.0,95.60937781]
[1764875563631,0.71,140.08,140.0,95.60937781]
[1764875563632,21.10569156,140.01,140.0,95.60937781]
[1764875563823,37.41455556,140.01,140.0,95.60937781]
[1764875564136,21.10569156,140.01,140.0,95.60937781]
[1764875564311,17.018864,140.01,140.0,95.60937781]
[1764875564512,8.83,140.04,140.0,95.60937781]
[1764875564733,25.138864,140.04,140.0,95.82937781]
[1764875564924,4.64733375,140.01,140.0,95.82937781]
[1764875565325,4.64733375,140.01,140.0,95.10937781]
[1764875565730,4.64733375,140.01,140.0,95.82937781]
[1764875565928,4.64733375,140.01,140.0,102.97223495]
[1764875566146,7.14085183,140.04,140.0,102.97223495]
[1764875566147,4.64733375,140.04,140.0,102.97223495]
[1764875566317,12.32921294,140.01,140.0,95.10937781]
[1764875566516,12.32921294,140.01,140.0,102.97223495]
[1764875566730,25.69639496,140.08,140.0,95.82937781]
[1764875566916,12.32921294,140.03,140.01,0.72]
[1764875567116,12.32921294,140.03,140.01,0.22]
[1764875567330,12.32921294,140.03,140.0,102.25207274]
[1764875567642,12.32921294,140.01,140.0,102.25223495]
[1764875567857,8.12,140.08,140.01,24.99819731]
[1764875568143,12.32921294,140.05,140.01,33.11819731]
[1764875568620,12.32921294,140.06,140.01,33.11819731]
[1764875569044,8.83,140.1,140.01,33.11819731]
[1764875569239,12.32921294,140.1,140.02,21.85915786]
[1764875569415,12.32921294,140.1,140.02,9.52994492]
[1764875569745,12.32921294,140.1,140.03,13.04921294]
[1764875570034,32.27518913,140.13,140.03,13.04921294]
[1764875570035,12.32921294,140.11,140.04,8.12]
[1764875570243,12.32921294,140.1,140.04,8.84]
[1764875570489,7.06815683,140.1,140.05,0.72]
[1764875570614,7.06815683,140.09,140.05,8.84]
[1764875570818,7.06815683,140.06,140.02,0.72]
[1764875571126,8.80994492,140.14,140.02,0.72]
[1764875571127,7.06815683,140.04,140.02,0.72]
[1764875571438,7.06815683,140.05,140.02,0.72]
[1764875571826,0.71,140.09,140.02,0.72]
[1764875572024,7.06815683,140.05,140.02,0.72]
[1764875572224,7.06815683,140.04,140.02,7.14172731]
[1764875572424,7.06815683,140.04,140.02,7.86172731]
[1764875572942,7.06815683,140.05,140.03,0.72]
[1764875573124,7.06815683,140.05,140.02,7.14172731]
[1764875573324,7.06815683,140.03,140.0,95.10937781]
[1764875573524,7.06815683,140.01,140.0,95.10937781]
[1764875573723,0.71,140.04,140.0,95.10937781]
[1764875573923,0.71,140.04,140.0,95.82937781]
[1764875573924,7.06815683,140.02,140.0,95.82937781]
[1764875574138,0.71,140.04,140.0,102.25210046]
[1764875574139,7.06815683,140.01,140.0,102.25210046]
[1764875574350,7.06815683,140.01,140.0,95.10937781]
[1764875574549,7.06815683,140.02,140.0,101.97223495]
[1764875574740,16.308864,140.05,140.0,119.1093778]
[1764875574956,7.06815683,140.02,140.0,101.25223495]
[1764875575156,24.15924232,140.05,140.0,94.10937781]
[1764875575157,7.06815683,140.01,140.0,94.10937781]
[1764875575339,14.84631366,140.01,140.0,94.10937781]
[1764875575541,14.84631366,140.01,140.0,93.12937781]
[1764875575542,8.83,140.01,140.0,93.12937781]
[1764875575738,8.83,140.01,139.97,0.1]
[1764875575739,16.308864,139.98,139.97,0.1]
[1764875576250,23.37702083,139.98,139.97,0.1]
[1764875576551,16.308864,139.98,139.97,0.1]
[1764875576858,23.37702083,140.0,139.97,0.1]
[1764875577031,7.06815683,139.98,139.97,0.1]
[1764875577436,16.308864,140.0,139.97,0.1]
[1764875577660,7.06815683,139.98,139.97,0.1]
[1764875577989,16.928864,140.0,139.97,0.1]
[1764875578161,7.14387769,139.98,139.97,0.1]
[1764875578458,7.06815683,139.98,139.97,0.1]
[1764875579261,23.99702083,139.98,139.97,0.1]
[1764875579452,23.37702083,139.98,139.97,0.1]
[1764875579854,32.11702083,139.98,139.97,0.1]
[1764875580355,39.26089852,139.98,139.97,0.1]
[1764875580961,32.19274169,139.98,139.97,0.1]
[1764875581168,38.64089852,139.98,139.97,0.1]
[1764875581553,39.26089852,139.98,139.97,0.1]
[1764875581959,8.12,139.98,139.97,0.1]
[1764875582179,15.26244976,140.01,139.97,0.1]
[1764875582355,23.37702083,139.98,139.94,7.14550508]
[1764875582563,7.06815683,139.95,139.94,7.14550508]
[1764875582765,15.18815683,139.97,139.94,7.14550508]
[1764875582957,8.12,140.0,139.94,25.01030427]
[1764875583281,7.06815683,139.99,139.94,25.01030427]
[1764875583462,7.06815683,139.99,139.94,24.51030427]
[1764875583661,0.71,139.99,139.94,7.14582212]
[1764875583978,8.12,139.99,139.92,7.14692217]
[1764875584155,8.12,139.99,139.9,7.14796283]
[1764875584156,7.14387769,139.98,139.9,7.14796283]
[1764875584348,7.06815683,139.95,139.9,25.0178699]
[1764875584553,7.06815683,139.94,139.91,0.72]
[1764875584759,7.06815683,139.94,139.9,25.0178699]
[1764875584760,7.06815683,139.94,139.9,24.2378699]
[1764875584968,7.14387769,139.98,139.9,24.2378699]
[1764875585156,7.06815683,139.95,139.9,24.2378699]
[1764875585357,8.12,139.99,139.9,31.30602673]
[1764875585563,7.06815683,139.96,139.9,31.30602673]
[1764875585747,7.06815683,139.95,139.9,24.2378699]
[1764875586473,7.06815683,139.94,139.9,24.2378699]
[1764875586676,7.06815683,139.93,139.9,6.36796283]
[1764875586871,7.06815683,139.92,139.9,6.36796283]
[1764875587260,7.06815683,139.91,139.87,17.87259743]
[1764875587460,7.06815683,139.92,139.89,7.14842346]
[1764875587665,7.06815683,139.93,139.89,7.14842346]
[1764875587872,7.06815683,139.92,139.89,7.14842346]
[1764875588175,15.97572859,139.95,139.87,25.02299593]
[1764875588691,7.06815683,139.9,139.87,7.14949596]
[1764875589172,7.77815683,139.92,139.87,5.64949596]
[1764875589372,7.77815683,139.92,139.83,8.80994492]
[1764875589373,0.71,139.91,139.83,8.80994492]
[1764875589563,25.118864,139.91,139.81,0.72]
[1764875589765,7.06815683,139.87,139.86,7.15000715]
[1764875589966,8.1,139.91,139.86,6.65000715]
[1764875590275,7.06815683,139.87,139.79,7.78815683]
[1764875590571,7.06815683,139.87,139.77,44.58231003]
[1764875590572,7.06815683,139.85,139.77,44.58231003]
[1764875590770,7.06815683,139.82,139.77,8.1]
[1764875590977,0.71,139.86,139.7,0.99999999]
[1764875591157,16.308864,139.84,139.71,3.73414827]
[1764875591361,7.06815683,139.72,139.71,3.73414827]
[1764875591572,7.06815683,139.72,139.66,7.15980706]
[1764875591871,3.71466071,139.7,139.65,2.75114674]
[1764875592253,7.86870856,139.69,139.65,2.75114674]
[1764875592460,16.308864,139.66,139.65,2.75114674]
[1764875592660,7.77815683,139.66,139.65,2.75114674]
[1764875593061,8.91,139.66,139.65,1.31114674]
[1764875593262,15.26815683,139.66,139.65,1.31114674]
[1764875593461,23.32384397,139.66,139.65,1.31114674]
[1764875593666,23.32384397,139.66,139.65,1.21114674]
[1764875593860,7.11118699,139.66,139.57,0.71]
[1764875594057,15.55456323,139.63,139.51,100.08723438]
[1764875594278,15.38173684,139.64,139.53,25.08421127]
[1764875594466,15.38077867,139.65,139.53,24.58421127]
[1764875594664,8.93,139.65,139.53,17.91729377]
[1764875594872,8.22,139.65,139.53,17.91729377]
[1764875595175,8.22,139.69,139.56,16.308864]
[1764875595688,8.22,139.69,139.58,8.80994492]
[1764875596058,3.71466071,139.7,139.55,0.71658903]
[1764875596059,0.71,139.68,139.55,0.71658903]
[1764875596287,0.71,139.68,139.48,10.10213115]
[1764875596288,7.06815683,139.59,139.54,7.16631643]
[1764875596583,16.308864,139.61,139.55,7.16567907]
[1764875596877,16.308864,139.64,139.56,0.71]
[1764875597681,7.06815683,139.6,139.56,0.71]
[1764875597876,17.018864,139.64,139.56,0.71]
[1764875598080,7.06815683,139.62,139.56,0.71]
[1764875598257,7.16178471,139.63,139.56,7.87535698]
[1764875598456,7.06815683,139.59,139.56,0.71]
[1764875598656,16.308864,139.56,139.42,5.60662003]
[1764875598865,7.06815683,139.49,139.45,7.88097287]
[1764875599156,0.71,139.55,139.49,0.71]
[1764875599357,16.308864,139.53,139.49,0.71]
[1764875599560,16.308864,139.56,139.49,8.80994492]
[1764875599780,0.71,139.63,139.52,7.06815683]
[1764875599980,0.71,139.63,139.49,17.04994492]
[1764875599981,0.71,139.63,139.5,8.80994492]
[1764875600161,25.06804182,139.62,139.51,7.16794495]
[1764875600360,16.308864,139.6,139.51,7.16794495]
[1764875600568,7.06815683,139.54,139.51,7.16794495]
[1764875600772,7.06815683,139.52,139.48,3.57200829]
[1764875600962,16.308864,139.55,139.48,10.74116553]
[1764875601157,7.06815683,139.52,139.48,10.74116553]
[1764875601566,7.06815683,139.54,139.49,0.71]
[1764875601771,8.24,139.59,139.5,8.80994492]
[1764875601958,7.16229766,139.62,139.52,8.80994492]
[1764875601959,7.06815683,139.57,139.52,8.80994492]
[1764875602165,23.47310333,139.59,139.5,7.16845878]
[1764875602363,7.06815683,139.56,139.5,32.15776256]
[1764875602559,16.308864,139.59,139.51,0.71]
[1764875602779,7.06815683,139.58,139.52,15.87810175]
[1764875602960,7.06815683,139.58,139.52,8.80994492]
[1764875603159,7.06815683,139.57,139.53,0.71]
[1764875603578,0.71,139.6,139.53,0.71]
[1764875603782,15.40288875,139.61,139.53,7.77815683]
[1764875603982,7.06815683,139.59,139.54,7.06815683]
[1764875604273,7.06815683,139.59,139.54,7.77815683]
[1764875604594,15.30815683,139.61,139.55,7.87589036]
[1764875604773,8.24,139.61,139.56,0.71]
[1764875604966,7.06815683,139.6,139.54,7.16636172]
[1764875605271,7.06815683,139.59,139.48,35.84743332]
[1764875605490,7.06815683,139.49,139.45,7.17100239]
[1764875605678,7.06815683,139.49,139.45,7.17076343]
[1764875605976,7.06815683,139.46,139.43,0.71]
[1764875606179,0.71,139.49,139.43,0.21]
[1764875606476,7.06815683,139.45,139.43,0.21]
[1764875606675,25.09341594,139.48,139.39,17.93462879]
[1764875606885,7.06815683,139.44,139.4,0.71]
[1764875607177,7.06815683,139.44,139.33,3.74382956]
[1764875607379,16.308864,139.43,139.34,0.71]
[1764875607682,7.06815683,139.41,139.34,7.77815683]
[1764875607888,7.06815683,139.43,139.37,7.06815683]
[1764875608088,16.308864,139.45,139.38,7.77815683]
[1764875608299,16.308864,139.45,139.39,0.71]
[1764875608586,7.06815683,139.41,139.39,0.71]
[1764875608788,23.47994986,139.45,139.39,7.88410563]
[1764875609088,7.06815683,139.42,139.39,7.88410563]
[1764875609279,7.06815683,139.41,139.37,7.88506554]
[1764875609478,7.06815683,139.4,139.37,7.17507575]
[1764875609677,7.77815683,139.44,139.38,7.88460971]
[1764875609890,7.16794495,139.51,139.39,7.88381839]
[1764875610079,0.71,139.56,139.44,7.06815683]
[1764875610271,0.71,139.55,139.41,8.80994492]
[1764875610482,7.16736305,139.53,139.43,25.10220181]
[1764875610679,18.62526479,139.55,139.44,7.06815683]
[1764875610680,0.71,139.55,139.44,7.06815683]
[1764875610895,7.06815683,139.54,139.47,7.06815683]
[1764875611067,0.71,139.58,139.48,16.07815683]
[1764875611266,25.06804182,139.62,139.48,9.01]
[1764875611589,7.06815683,139.6,139.53,7.06815683]
[1764875611764,7.06815683,139.63,139.57,7.06815683]
[1764875612091,7.06815683,139.67,139.61,7.06815683]
[1764875612292,7.06815683,139.67,139.61,7.77815683]
[1764875612462,8.06882315,139.69,139.61,0.71]
[1764875612463,7.06815683,139.66,139.61,0.71]
[1764875612867,9.01,139.65,139.54,7.77815683]
[1764875613175,9.01,139.65,139.55,7.8758265]
[1764875613176,7.06815683,139.59,139.55,7.8758265]
[1764875613376,7.06815683,139.61,139.55,14.94398333]
[1764875613579,17.018864,139.64,139.56,0.71]
[1764875613906,7.06815683,139.61,139.56,0.71]
[1764875614078,7.06815683,139.63,139.58,7.06815683]
[1764875614387,7.06815683,139.66,139.6,7.06815683]
[1764875614606,7.06815683,139.65,139.61,7.16281068]
[1764875614791,7.06815683,139.65,139.61,7.87281068]
[1764875615089,7.06815683,139.65,139.6,7.16324589]
[1764875615283,0.71,139.67,139.6,7.87324589]
[1764875615543,0.71,139.67,139.56,0.71]
[1764875615544,7.06815683,139.61,139.56,0.71]
[1764875615787,7.06815683,139.59,139.56,0.71]
[1764875615997,7.06815683,139.57,139.52,18.62838863]
[1764875616176,16.308864,139.62,139.53,0.71]
[1764875616374,7.06815683,139.58,139.53,0.71]
[1764875616573,7.06815683,139.58,139.54,7.16640389]
[1764875616777,7.06815683,139.59,139.54,7.16640389]
[1764875616979,7.06815683,139.61,139.55,7.77815683]
[1764875617200,7.06815683,139.62,139.56,16.05815683]
[1764875617370,7.06815683,139.62,139.52,7.06815683]
[1764875617371,7.06815683,139.57,139.53,7.16683117]
[1764875617571,8.80994492,139.64,139.53,0.71]
[1764875617572,7.06815683,139.55,139.53,0.71]
[1764875617872,16.308864,139.59,139.5,0.71]
[1764875618077,7.06815683,139.57,139.51,0.71]
[1764875618279,7.06815683,139.54,139.51,0.71]
[1764875618487,7.06815683,139.55,139.51,7.8778916]
[1764875619384,0.71,139.58,139.52,0.71]
[1764875619690,7.06815683,139.55,139.52,0.71]
[1764875619887,7.06815683,139.53,139.47,7.16996399]
[1764875620113,7.06815683,139.48,139.43,0.71]
[1764875620409,7.06815683,139.47,139.43,7.88168455]
[1764875620698,7.06815683,139.47,139.44,0.71]
[1764875621000,16.308864,139.52,139.44,0.71]
[1764875621201,7.06815683,139.51,139.44,0.71]
[1764875621423,7.06815683,139.49,139.44,0.71]
[1764875621718,0.71,139.51,139.44,14.23960351]
[1764875622002,0.71,139.51,139.36,118.94456158]
[1764875622003,16.308864,139.49,139.43,7.17196564]
[1764875622210,7.06815683,139.46,139.43,7.17196564]
[1764875622422,0.71,139.49,139.43,7.17196564]
[1764875622583,7.06815683,139.46,139.43,7.17194238]
[1764875623088,7.06815683,139.44,139.39,17.93496303]
[1764875623406,24.588864,139.5,139.4,0.69]
[1764875623407,7.06815683,139.45,139.4,0.69]
[1764875623579,24.588864,139.5,139.42,7.06815683]
[1764875623580,16.308864,139.5,139.42,7.06815683]
[1764875623780,7.06815683,139.49,139.43,32.17035864]
[1764875624184,7.06815683,139.49,139.44,7.75815683]
[1764875624503,7.06815683,139.5,139.44,7.75815683]
[1764875624821,7.16754627,139.52,139.45,7.75815683]
[1764875624984,7.06815683,139.51,139.45,7.75815683]
[1764875625304,7.06815683,139.51,139.46,7.75815683]
[1764875625553,0.68,139.5,139.43,7.17205766]
[1764875625686,7.16948666,139.48,139.38,7.17425693]
[1764875626007,7.16948666,139.48,139.38,7.86425693]
[1764875626008,8.96,139.47,139.38,7.86425693]
[1764875626304,7.06815683,139.44,139.39,0.69]
[1764875626910,7.06815683,139.47,139.42,7.06815683]
[1764875627114,15.4479273,139.52,139.44,7.06815683]
[1764875627288,23.37702083,139.51,139.4,8.80994492]
[1764875627605,7.16602489,139.55,139.48,7.06815683]
[1764875627797,7.06815683,139.54,139.49,14.92712951]
[1764875627996,7.16602489,139.55,139.49,7.85897268]
[1764875628203,7.06815683,139.54,139.49,14.92712951]
[1764875628590,14.23418172,139.55,139.5,0.69]
[1764875628794,14.23418172,139.55,139.5,14.92628294]
[1764875629599,7.06815683,139.52,139.45,18.61642541]
[1764875629909,0.68,139.61,139.51,7.06815683]
[1764875630090,7.06815683,139.55,139.49,7.16885445]
[1764875630291,7.06815683,139.53,139.49,7.16885445]
[1764875630499,7.06815683,139.53,139.48,14.92753]
[1764875631182,7.06815683,139.49,139.42,0.69]
[1764875631498,7.06815683,139.47,139.42,0.69]
[1764875631810,7.06815683,139.49,139.43,7.06815683]
[1764875632010,16.988864,139.51,139.43,7.06815683]
[1764875632011,7.06815683,139.48,139.43,7.06815683]
[1764875632185,7.06815683,139.47,139.42,7.86220479]
[1764875632388,12.42314452,139.44,139.41,7.17293798]
[1764875632698,12.42314452,139.44,139.39,8.28]
[1764875632699,7.17051484,139.46,139.39,7.1739736]
[1764875632890,12.42314452,139.45,139.4,12.42314452]
[1764875633092,7.17051484,139.46,139.41,19.59617558]
[1764875633506,16.988864,139.48,139.42,13.11314452]
[1764875633698,16.988864,139.48,139.43,12.42314452]
[1764875633699,28.73200852,139.48,139.43,12.42314452]
[1764875633901,28.73200852,139.48,139.42,13.11314452]
[1764875634097,16.308864,139.48,139.43,12.42314452]
[1764875634319,4.56042596,139.47,139.43,13.11314452]
[1764875634700,12.42314452,139.49,139.45,7.17102904]
[1764875634899,4.56099157,139.48,139.45,19.59417356]
[1764875635112,4.56099157,139.49,139.45,20.28417356]
[1764875635302,4.56099157,139.48,139.46,0.69]
[1764875635508,4.56099157,139.49,139.46,13.11314452]
[1764875635704,24.15228615,139.51,139.46,13.11314452]
[1764875636000,4.56099157,139.5,139.46,13.11314452]
[1764875636203,4.56099157,139.49,139.46,13.11314452]
[1764875636516,4.56099157,139.48,139.47,13.11314452]
[1764875636711,4.56099157,139.48,139.47,20.28314523]
[1764875637211,4.56099157,139.48,139.44,8.26]
[1764875637411,5.79126561,139.51,139.43,17.92979618]
[1764875637412,4.56099157,139.47,139.45,0.69]
[1764875637610,4.56099157,139.46,139.45,0.69]
[1764875638711,4.56099157,139.46,139.45,7.86101229]
[1764875638911,4.56099157,139.46,139.45,20.28415681]
[1764875639112,5.79126561,139.5,139.45,38.21172941]
[1764875639295,4.59427644,139.49,139.45,25.09858489]
[1764875639610,4.59427644,139.48,139.45,37.52172941]
[1764875639797,4.59427644,139.47,139.46,0.69]
[1764875640203,5.79126561,139.51,139.46,38.20994646]
[1764875640400,4.59699817,139.5,139.46,7.86051484]
[1764875640711,22.8114083,139.49,139.45,7.17054034]
[1764875640921,16.308864,139.43,139.34,0.1]
[1764875641100,5.74154695,139.41,139.34,0.79]
[1764875641300,5.74154695,139.39,139.34,7.27636337]
[1764875641509,10.33854512,139.38,139.35,7.17616149]
[1764875641719,8.40168748,139.4,139.35,7.17616149]
[1764875641720,4.59699817,139.37,139.36,7.17566016]
[1764875641932,8.26,139.43,139.38,7.1746305]
[1764875641933,4.59699817,139.39,139.38,7.1746305]
[1764875642116,5.74154695,139.47,139.39,8.80994492]
[1764875642292,12.91105103,139.48,139.4,0.69]
[1764875642499,5.74154695,139.48,139.4,0.69]
[1764875642827,8.26,139.49,139.38,7.1746305]
[1764875642828,12.42314452,139.44,139.38,7.1746305]
[1764875642992,12.42314452,139.41,139.35,0.69]
[1764875643197,8.26,139.4,139.34,0.1]
[1764875643513,12.42314452,139.39,139.34,13.21314452]
[1764875643704,8.26,139.4,139.34,13.21314452]
[1764875643906,8.26,139.4,139.36,12.42314452]
[1764875644115,20.68314452,139.41,139.37,7.17506834]
[1764875644305,0.68,139.41,139.37,7.17506834]
[1764875644622,8.26,139.41,139.38,13.11314452]
[1764875644805,29.41200852,139.43,139.37,19.59821286]
[1764875645000,12.42314452,139.41,139.36,19.59874866]
[1764875645196,12.42314452,139.37,139.34,0.1]
[1764875645513,12.42314452,139.35,139.34,0.1]
[1764875645818,6.42154695,139.41,139.34,0.1]
[1764875645819,12.42314452,139.38,139.34,0.1]
[1764875646027,8.26,139.38,139.34,7.96661615]
[1764875646228,0.68,139.4,139.34,0.1]
[1764875646407,0.68,139.4,139.36,7.17519411]
[1764875646597,0.68,139.4,139.34,0.79]
[1764875646896,13.10314452,139.4,139.34,0.79]
[1764875647097,8.94,139.4,139.36,7.17555464]
[1764875647298,8.94,139.4,139.34,0.79]
[1764875647299,0.68,139.39,139.34,0.1]
[1764875647523,16.308864,139.37,139.34,0.1]
[1764875647709,8.26,139.36,139.34,0.1]
[1764875647904,8.94,139.37,139.34,19.6997817]
[1764875648124,0.68,139.36,139.34,0.1]
[1764875648312,52.5442886,139.36,139.28,2.05164753]
[1764875648620,12.42314452,139.29,139.27,1e-08]
[1764875648822,8.80994492,139.28,139.27,1e-08]
[1764875649015,17.06994492,139.28,139.27,1e-08]
[1764875649596,8.26,139.28,139.27,1e-08]
[1764875650002,16.308864,139.26,139.08,35.94962604]
[1764875650201,0.99999999,139.17,139.04,75.69]
[1764875650405,25.13645503,139.24,139.01,0.69]
[1764875650406,12.42314452,139.08,139.01,0.69]
[1764875650623,16.308864,139.04,139.0,2.0]
[1764875650818,8.80994492,139.12,139.0,2.0]
[1764875650819,8.28,139.03,139.0,2.0]
[1764875651034,8.28,139.1,139.01,0.69]
[1764875651338,25.11880892,139.07,139.01,0.69]
[1764875651535,16.308864,139.08,139.01,0.69]
[1764875651536,0.99999999,139.18,139.01,7.88372706]
[1764875651831,16.308864,139.12,139.01,25.86804473]
[1764875652039,24.608864,139.12,139.02,0.69]
[1764875652344,8.3,139.12,139.03,25.17442278]
[1764875652703,24.608864,139.15,139.07,12.42314452]
[1764875652909,8.3,139.15,139.05,16.308864]
[1764875653112,8.3,139.15,139.09,12.42314452]
[1764875653311,8.3,139.15,139.1,12.42314452]
[1764875653536,36.17707168,139.23,139.09,12.42314452]
[1764875653537,8.3,139.17,139.09,12.42314452]
[1764875653713,7.18287602,139.22,139.06,16.968864]
[1764875653913,7.18287602,139.22,139.07,8.80994492]
[1764875654119,12.42314452,139.19,139.09,8.80994492]
[1764875654331,8.3,139.21,139.13,12.42314452]
[1764875654670,20.72314452,139.2,139.13,12.42314452]
[1764875654814,7.18132854,139.25,139.14,0.66]
[1764875655011,25.12743196,139.29,139.17,12.42314452]
[1764875655241,8.3,139.27,139.18,12.42314452]
[1764875655547,8.3,139.27,139.11,75.99999999]
[1764875655548,12.42314452,139.19,139.15,0.66]
[1764875655843,12.42314452,139.19,139.09,9.46994492]
[1764875656137,23.49172753,139.23,139.12,12.42314452]
[1764875656341,12.42314452,139.18,139.11,37.58308987]
[1764875656520,31.79172753,139.23,139.11,37.58308987]